bitfinex/quotes_SOLUSD_20251030
["timestamp","ask_amount","ask_price","bid_price","bid_amount"]
[1761799148111,8.50269175,194.25,194.14,5.15092201]
[1761799148112,7.78269175,194.24,194.17,7.78269175]
[1761799148304,0.72,194.24,194.18,7.78269175]
[1761799148529,0.72,194.24,194.2,7.78269175]
[1761799148907,0.72,194.27,194.15,9.78882769]
[1761799149111,0.72,194.27,194.16,0.51503914]
[1761799149444,7.78269175,194.24,194.17,7.78269175]
[1761799149732,7.78269175,194.18,194.11,7.78269175]
[1761799149939,7.78269175,194.17,194.09,7.78269175]
[1761799150229,7.78269175,194.17,194.03,0.56]
[1761799150230,7.78269175,194.15,194.07,7.78269175]
[1761799150618,0.72,194.14,194.03,39.14568771]
[1761799150803,0.72,194.14,194.08,7.78269175]
[1761799151220,50.0,194.21,194.1,7.78269175]
[1761799151540,20.592,194.23,194.19,7.78269175]
[1761799151541,0.72,194.23,194.19,7.78269175]
[1761799151710,0.72,194.22,194.1,20.592]
[1761799152041,0.72,194.22,194.15,7.78269175]
[1761799152208,0.72,194.22,194.18,7.78269175]
[1761799152409,0.72,194.26,194.19,7.78269175]
[1761799152632,0.72,194.26,194.22,7.78269175]
[1761799152844,0.72,194.29,194.24,7.78269175]
[1761799153006,0.72,194.29,194.15,0.51506567]
[1761799153007,7.78269175,194.29,194.15,0.51506567]
[1761799153203,0.72,194.28,194.23,7.78269175]
[1761799153408,7.78269175,194.27,194.2,7.78269175]
[1761799153712,0.72,194.26,194.2,7.78269175]
[1761799153906,0.72,194.26,194.19,7.78269175]
[1761799154107,55.86776164,194.26,194.13,7.78269175]
[1761799154328,7.78269175,194.21,194.15,7.78269175]
[1761799154533,0.72,194.2,194.09,5.15224895]
[1761799154735,0.72,194.2,194.14,7.78269175]
[1761799155241,0.72,194.2,194.16,7.78269175]
[1761799155442,0.72,194.24,194.18,7.78269175]
[1761799155638,0.72,194.24,194.1,10.30402604]
[1761799155639,7.78269175,194.22,194.15,7.78269175]
[1761799155804,7.78269175,194.21,194.14,7.78269175]
[1761799156005,7.78269175,194.15,193.97,0.51554364]
[1761799156218,7.78269175,194.09,194.02,7.78269175]
[1761799156725,0.72,194.08,194.02,7.78269175]
[1761799157039,7.78269175,194.06,193.99,7.78269175]
[1761799157444,0.72,194.05,193.99,7.78269175]
[1761799157819,0.72,194.05,193.93,5.15649976]
[1761799158251,7.78269175,194.02,193.93,5.15649976]
[1761799158445,0.72,194.05,193.91,14.9456563]
[1761799158446,7.78269175,194.01,193.91,14.9456563]
[1761799158615,7.78269175,194.0,193.93,7.78269175]
[1761799158821,7.78269175,193.98,193.92,7.78269175]
[1761799159052,0.72,194.04,193.97,7.78269175]
[1761799159362,0.72,194.09,194.03,7.78269175]
[1761799159643,0.72,194.09,193.98,0.51551706]
[1761799159644,0.72,194.08,194.05,7.78269175]
[1761799159882,0.72,194.08,193.98,0.51551706]
[1761799160022,0.72,194.08,193.98,26.26254203]
[1761799160222,0.72,194.08,194.02,7.78269175]
[1761799160425,0.72,194.08,194.03,7.78269175]
[1761799160646,7.78269175,194.1,193.98,39.15046862]
[1761799160647,0.72,194.07,193.98,20.592]
[1761799160834,0.72,194.07,194.02,7.78269175]
[1761799161046,7.78269175,194.03,193.9,9.78882769]
[1761799161233,20.592,193.99,193.83,0.515916]
[1761799161569,0.14216157,193.98,193.82,0.56]
[1761799161728,0.72,193.97,193.9,7.78269175]
[1761799161925,0.72,193.97,193.91,7.78269175]
[1761799162249,0.72,193.97,193.92,7.78269175]
[1761799162463,0.72,193.97,193.86,9.78882769]
[1761799162760,0.72,193.97,193.93,7.78269175]
[1761799163121,0.69,194.03,193.89,21.152]
[1761799163321,0.69,194.03,193.92,9.78882769]
[1761799163674,0.69,194.03,193.93,0.51564997]
[1761799163842,0.69,194.03,193.92,0.51567656]
[1761799164041,0.69,194.03,193.93,20.592]
[1761799164253,20.592,194.11,193.93,20.592]
[1761799164254,0.69,194.07,193.94,10.30445107]
[1761799164459,8.47269175,194.06,193.99,7.78269175]
[1761799164668,7.78269175,194.0,193.85,0.51586278]
[1761799164862,0.69,194.05,193.88,20.592]
[1761799165078,8.47269175,194.04,193.9,9.78882769]
[1761799165236,0.69,194.04,193.93,7.78269175]
[1761799165560,7.78269175,193.99,193.85,9.78882769]
[1761799165757,0.69,194.03,193.92,7.78269175]
[1761799165944,7.78269175,193.97,193.9,7.78269175]
[1761799166152,0.69,194.02,193.86,9.78882769]
[1761799166352,7.78269175,193.93,193.86,7.78269175]
[1761799166557,21.282,194.01,193.85,10.34882769]
[1761799166782,21.282,194.01,193.82,9.78882769]
[1761799166783,0.69,194.0,193.89,7.78269175]
[1761799167080,8.47269175,194.0,193.93,7.78269175]
[1761799167281,7.78269175,193.98,193.91,7.78269175]
[1761799167490,0.69,193.99,193.91,7.78269175]
[1761799167660,50.69,194.02,193.85,10.30469047]
[1761799167988,0.69,194.02,193.91,7.78269175]
[1761799168279,7.78269175,193.98,193.91,7.78269175]
[1761799168459,7.78269175,193.98,193.86,12.89573831]
[1761799168661,8.47269175,193.97,193.85,9.78882769]
[1761799168983,0.69,193.97,193.93,7.78269175]
[1761799169574,0.69,193.97,193.85,5.15848039]
[1761799169782,0.69,193.97,193.91,7.78269175]
[1761799170158,0.69,193.97,193.86,20.592]
[1761799170363,0.69,193.97,193.86,7.78269175]
[1761799170575,0.69,193.97,193.83,1.075916]
[1761799170576,8.47269175,193.97,193.83,1.075916]
[1761799170873,8.47269175,193.96,193.89,7.78269175]
[1761799171055,50.69,193.96,193.82,20.592]
[1761799171252,7.78269175,193.91,193.84,7.78269175]
[1761799171579,5.11753586,193.9,193.83,5.11753586]
[1761799171780,5.11753586,193.92,193.85,5.11753586]
[1761799171987,0.69,193.97,193.9,5.11753586]
[1761799172190,5.11753586,193.95,193.89,5.11753586]
[1761799172353,5.11753586,193.96,193.89,5.11753586]
[1761799172696,0.69,194.0,193.91,5.11753586]
[1761799172856,5.80753586,194.0,193.93,5.11753586]
[1761799173054,0.69,194.0,193.95,5.11753586]
[1761799173251,5.11753586,193.97,193.87,20.592]
[1761799173561,5.11753586,193.98,193.85,21.10786278]
[1761799173763,0.69,193.99,193.84,20.592]
[1761799173971,0.69,193.98,193.89,5.11753586]
[1761799174159,5.11753586,193.94,193.87,5.11753586]
[1761799174663,0.69,193.94,193.89,5.11753586]
[1761799174852,0.69,193.96,193.91,5.11753586]
[1761799175658,0.69,193.96,193.88,20.592]
[1761799175857,0.69,194.0,193.93,5.11753586]
[1761799176088,0.69,194.0,193.88,20.592]
[1761799176089,0.69,194.0,193.94,5.11753586]
[1761799176290,5.11753586,193.97,193.84,9.78882769]
[1761799176588,0.69,194.0,193.88,5.11753586]
[1761799176886,0.69,193.99,193.89,5.11753586]
[1761799177261,50.69,193.99,193.87,20.592]
[1761799177588,5.11753586,193.96,193.89,5.11753586]
[1761799177885,50.0,193.95,193.79,0.2]
[1761799178063,5.11753586,193.94,193.87,5.11753586]
[1761799178260,5.80753586,193.94,193.87,5.11753586]
[1761799178459,120.592,193.99,193.83,9.78882769]
[1761799178460,5.11753586,193.92,193.86,5.11753586]
[1761799178658,0.69,193.98,193.86,9.78882769]
[1761799178851,5.11753586,193.98,193.86,9.78882769]
[1761799179052,0.69,193.97,193.91,5.11753586]
[1761799179364,7.61489872,194.01,193.94,7.61489872]
[1761799179568,50.0,194.06,193.93,7.61489872]
[1761799179569,7.61489872,194.0,193.93,7.61489872]
[1761799179769,7.61489872,193.98,193.92,7.61489872]
[1761799179958,7.61489872,193.98,193.91,7.61489872]
[1761799180278,8.30489872,193.97,193.91,7.61489872]
[1761799180656,8.30489872,193.96,193.89,7.61489872]
[1761799180890,7.61489872,193.95,193.88,28.20689872]
[1761799181184,0.69,194.0,193.94,7.61489872]
[1761799181492,0.69,193.99,193.94,7.61489872]
[1761799181664,7.61489872,194.03,193.96,7.61489872]
[1761799181859,0.69,194.08,194.02,7.61489872]
[1761799182176,0.69,194.08,194.05,7.61489872]
[1761799182581,0.69,194.08,194.04,7.61489872]
[1761799182787,8.30489872,194.08,194.02,7.61489872]
[1761799183162,50.0,194.12,193.98,20.592]
[1761799183367,7.61489872,194.12,194.06,7.61489872]
[1761799183564,0.69,194.11,194.06,7.61489872]
[1761799183883,7.61489872,194.15,194.09,7.61489872]
[1761799184088,7.61489872,194.16,194.03,9.78882769]
[1761799184300,0.69,194.16,194.1,7.61489872]
[1761799184471,0.69,194.15,194.1,7.61489872]
[1761799184904,0.69,194.24,194.14,7.61489872]
[1761799185062,15.96129154,194.46,194.13,9.78882769]
[1761799185063,0.69,194.22,194.13,9.78882769]
[1761799185267,100.0,194.3,194.2,7.61489872]
[1761799185464,0.69,194.29,194.23,7.61489872]
[1761799185683,0.69,194.29,194.24,7.61489872]
[1761799185866,0.69,194.33,194.27,7.61489872]
[1761799186277,0.69,194.33,194.22,9.78882769]
[1761799186278,0.69,194.33,194.28,9.78882769]
[1761799186505,0.69,194.33,194.22,20.592]
[1761799186506,7.61489872,194.31,194.22,20.592]
[1761799186697,0.1,194.34,194.28,7.61489872]
[1761799186907,0.1,194.34,194.24,0.51482701]
[1761799187076,0.1,194.34,194.33,7.61489872]
[1761799187282,0.69,194.45,194.36,20.592]
[1761799187591,0.69,194.45,194.41,7.61489872]
[1761799187805,0.69,194.45,194.39,7.61489872]
[1761799188009,8.30489872,194.45,194.36,20.592]
[1761799188212,7.61489872,194.44,194.37,7.61489872]
[1761799188378,0.69,194.45,194.41,7.61489872]
[1761799188579,0.69,194.45,194.37,30.38082769]
[1761799188789,0.69,194.45,194.37,20.592]
[1761799189197,0.69,194.45,194.31,20.592]
[1761799189379,7.61489872,194.43,194.31,20.592]
[1761799189584,7.61489872,194.4,194.34,7.61489872]
[1761799189782,7.61489872,194.41,194.34,7.61489872]
[1761799189998,0.69,194.42,194.31,7.61489872]
[1761799190283,7.61489872,194.34,194.21,5.60898399]
[1761799190492,7.61489872,194.34,194.27,7.61489872]
[1761799190721,7.61489872,194.34,194.22,0.51488003]
[1761799190722,0.69,194.33,194.28,7.61489872]
[1761799191088,0.69,194.33,194.18,20.4889902]
[1761799191089,7.61489872,194.31,194.16,0.46]
[1761799191287,8.98560513,194.29,194.22,8.98560513]
[1761799191603,70.592,194.37,194.17,0.51501261]
[1761799191604,50.0,194.45,194.28,8.98560513]
[1761799191817,0.1,194.48,194.32,0.14216157]
[1761799192121,0.1,194.48,194.33,0.51458858]
[1761799192294,0.1,194.48,194.36,25.7370352]
[1761799192295,0.79,194.48,194.36,25.7370352]
[1761799192494,0.79,194.48,194.37,0.51448268]
[1761799192713,0.79,194.48,194.34,0.14216157]
[1761799192714,8.98560513,194.44,194.38,8.98560513]
[1761799192893,8.98560513,194.44,194.37,8.98560513]
[1761799193219,0.69,194.43,194.38,8.98560513]
[1761799193422,0.69,194.43,194.31,0.51464155]
[1761799193423,9.67560513,194.43,194.31,0.51464155]
[1761799193603,0.69,194.43,194.34,20.592]
[1761799193805,9.67560513,194.43,194.34,20.592]
[1761799193991,0.69,194.43,194.36,8.98560513]
[1761799194317,9.67560513,194.43,194.32,20.592]
[1761799194526,0.69,194.43,194.27,0.14216157]
[1761799194687,8.98560513,194.39,194.33,8.98560513]
[1761799194886,8.98560513,194.41,194.34,8.98560513]
[1761799195114,0.69,194.42,194.35,8.98560513]
[1761799195417,0.69,194.42,194.34,8.98560513]
[1761799195717,8.98560513,194.38,194.31,8.98560513]
[1761799196019,8.98560513,194.4,194.29,20.592]
[1761799196222,0.69,194.42,194.31,20.592]
[1761799196385,9.67560513,194.41,194.31,20.592]
[1761799196587,8.98560513,194.38,194.23,0.46]
[1761799196787,0.69,194.4,194.24,0.51482701]
[1761799197027,50.69,194.44,194.3,8.98560513]
[1761799197321,20.592,194.41,194.23,0.46]
[1761799197687,0.69,194.4,194.27,8.98560513]
[1761799197888,0.69,194.4,194.29,8.98560513]
[1761799198114,0.69,194.4,194.23,0.51485352]
[1761799198307,5.83412578,194.4,194.3,8.98560513]
[1761799198515,0.69,194.45,194.29,20.592]
[1761799198713,0.1,194.64,194.3,0.51466803]
[1761799198714,0.69,194.47,194.3,0.51466803]
[1761799198916,8.98560513,194.43,194.3,0.51466803]
[1761799199120,0.69,194.47,194.31,20.592]
[1761799199121,8.98560513,194.4,194.31,20.592]
[1761799199420,8.98560513,194.4,194.3,20.592]
[1761799199730,0.69,194.44,194.31,0.51464155]
[1761799200018,8.98560513,194.42,194.35,8.98560513]
[1761799200424,8.98560513,194.36,194.29,8.98560513]
[1761799200732,8.98560513,194.38,194.32,8.98560513]
[1761799200887,50.69,194.41,194.23,0.51485352]
[1761799201093,50.69,194.41,194.26,8.98560513]
[1761799201094,8.98560513,194.32,194.26,8.98560513]
[1761799201300,0.69,194.39,194.31,8.98560513]
[1761799201498,14.85329402,194.51,194.27,0.79907065]
[1761799201499,8.98560513,194.43,194.27,0.79907065]
[1761799201722,8.98560513,194.39,194.29,20.592]
[1761799201927,8.98560513,194.39,194.32,8.98560513]
[1761799202100,0.69,194.39,194.33,8.98560513]
[1761799202307,0.69,194.46,194.37,8.98560513]
[1761799202506,8.98560513,194.44,194.38,8.98560513]
[1761799202725,0.69,194.46,194.35,20.592]
[1761799202911,0.1,194.48,194.42,8.98560513]
[1761799203111,0.1,194.48,194.44,8.98560513]
[1761799203519,0.1,194.48,194.39,20.592]
[1761799203726,0.79,194.48,194.37,0.51448268]
[1761799203913,18.7868086,194.48,194.29,5.60681602]
[1761799204118,8.98560513,194.38,194.32,8.98560513]
[1761799204339,8.98560513,194.37,194.29,6.12149132]
[1761799204638,67.9985601,194.46,194.29,6.12149132]
[1761799204639,100.0,194.44,194.29,8.98560513]
[1761799204847,20.592,194.45,194.24,5.14815157]
[1761799204848,8.98560513,194.33,194.24,5.14815157]
[1761799205011,50.0,194.4,194.22,5.66346966]
[1761799205012,50.0,194.38,194.22,5.66346966]
[1761799205217,50.0,194.36,194.22,8.98560513]
[1761799205441,8.98560513,194.28,194.22,8.98560513]
[1761799205741,0.69,194.35,194.18,20.592]
[1761799206043,43.71078883,194.46,194.19,0.51495957]
[1761799206044,8.98560513,194.33,194.19,0.51495957]
[1761799206211,8.98560513,194.34,194.28,8.98560513]
[1761799206413,8.98560513,194.36,194.3,8.98560513]
[1761799206608,8.98560513,194.34,194.28,8.98560513]
[1761799206846,0.69,194.4,194.23,0.97485352]
[1761799207016,8.98560513,194.32,194.26,8.98560513]
[1761799207220,8.98560513,194.38,194.31,8.98560513]
[1761799207421,0.69,194.44,194.37,8.98560513]
[1761799207618,0.69,194.43,194.31,9.78882769]
[1761799207817,8.98560513,194.4,194.34,8.98560513]
[1761799208126,8.98560513,194.36,194.24,30.52298926]
[1761799208436,0.1,194.48,194.35,8.98560513]
[1761799208640,0.69,194.47,194.36,0.51450915]
[1761799208842,0.69,194.47,194.35,21.10653563]
[1761799209026,9.08560513,194.48,194.45,8.98560513]
[1761799209027,0.1,194.48,194.45,8.98560513]
[1761799209518,0.1,194.48,194.4,20.592]
[1761799209959,0.1,194.48,194.46,8.98560513]
[1761799210240,0.1,194.48,194.47,8.98560513]
[1761799210627,0.1,194.48,194.36,0.46]
[1761799210825,0.1,194.48,194.45,8.98560513]
[1761799211044,0.1,194.48,194.42,20.592]
[1761799211045,0.1,194.48,194.46,8.98560513]
[1761799211252,0.1,194.48,194.42,21.10635037]
[1761799211253,0.1,194.48,194.47,8.98560513]
[1761799211667,0.79,194.58,194.54,8.98560513]
[1761799211668,0.1,194.58,194.54,8.98560513]
[1761799212030,0.1,194.58,194.53,8.98560513]
[1761799212228,0.1,194.58,194.51,5.14112384]
[1761799212563,0.1,194.58,194.49,0.87416525]
[1761799212737,0.79,194.58,194.48,21.10619169]
[1761799212927,8.98560513,194.56,194.48,20.592]
[1761799213127,8.98560513,194.52,194.45,8.98560513]
[1761799213424,8.98560513,194.54,194.42,10.14882769]
[1761799213640,0.1,194.58,194.53,8.98560513]
[1761799214162,0.1,194.58,194.47,0.51421813]
[1761799214163,0.79,194.58,194.47,0.51421813]
[1761799214362,0.79,194.58,194.54,8.98560513]
[1761799214528,0.1,194.58,194.55,8.98560513]
[1761799214729,0.1,194.58,194.54,8.98560513]
[1761799214947,0.1,194.58,194.5,9.78882769]
[1761799215164,0.1,194.58,194.48,10.14882769]
[1761799215165,8.98560513,194.54,194.46,25.73442514]
[1761799215476,8.98560513,194.5,194.37,0.87448268]
[1761799215632,8.98560513,194.46,194.37,0.51448268]
[1761799215837,50.0,194.53,194.33,5.50588586]
[1761799216038,8.98560513,194.46,194.4,8.98560513]
[1761799216248,8.98560513,194.45,194.34,0.36]
[1761799216455,0.69,194.44,194.33,5.14562947]
[1761799216651,0.69,194.44,194.36,8.98560513]
[1761799216652,8.98560513,194.43,194.36,8.98560513]
[1761799216852,0.69,194.44,194.39,8.98560513]
[1761799217273,0.69,194.44,194.34,0.5145621]
[1761799217594,0.69,194.44,194.28,0.36]
[1761799217761,0.69,194.44,194.29,0.51469452]
[1761799217959,8.98560513,194.37,194.25,0.51480051]
[1761799218159,0.69,194.36,194.22,0.51488003]
[1761799218356,8.98560513,194.31,194.25,8.98560513]
[1761799218556,8.98560513,194.32,194.25,8.98560513]
[1761799218765,8.98560513,194.31,194.25,8.98560513]
[1761799218960,8.98560513,194.32,194.25,8.98560513]
[1761799219157,8.98560513,194.32,194.26,8.98560513]
[1761799219385,8.98560513,194.31,194.25,8.98560513]
[1761799219569,8.98560513,194.28,194.22,8.98560513]
[1761799219769,50.0,194.37,194.25,8.98560513]
[1761799219770,0.69,194.33,194.25,8.98560513]
[1761799220079,0.69,194.33,194.23,8.98560513]
[1761799220261,8.98560513,194.3,194.24,8.98560513]
[1761799220874,8.98560513,194.3,194.18,0.36]
[1761799220875,8.98560513,194.27,194.18,5.14977727]
[1761799221080,8.98560513,194.25,194.19,8.98560513]
[1761799221447,50.0,194.35,194.22,8.98560513]
[1761799221784,50.0,194.4,194.18,20.592]
[1761799221785,9.67560513,194.31,194.18,20.592]
[1761799222076,8.98560513,194.29,194.23,8.98560513]
[1761799222376,0.69,194.3,194.25,8.98560513]
[1761799222557,9.67560513,194.3,194.18,20.592]
[1761799222771,8.98560513,194.26,194.2,8.98560513]
[1761799223152,9.65560513,194.25,194.19,8.98560513]
[1761799223474,8.98560513,194.29,194.23,8.98560513]
[1761799223655,8.98560513,194.31,194.25,8.98560513]
[1761799223853,20.592,194.37,194.2,20.592]
[1761799224160,0.67,194.32,194.26,8.98560513]
[1761799224352,0.67,194.32,194.28,8.98560513]
[1761799224550,0.67,194.32,194.26,8.98560513]
[1761799224749,0.67,194.32,194.27,8.98560513]
[1761799225170,8.98560513,194.31,194.25,8.98560513]
[1761799225556,0.67,194.31,194.25,8.98560513]
[1761799225761,0.67,194.31,194.28,8.98560513]
[1761799225961,0.67,194.42,194.31,20.592]
[1761799226280,0.67,194.43,194.38,8.98560513]
[1761799226466,9.65560513,194.43,194.37,8.98560513]
[1761799227080,0.67,194.48,194.34,18.00945986]
[1761799227383,8.98560513,194.47,194.4,8.98560513]
[1761799227571,8.98560513,194.45,194.39,8.98560513]
[1761799228061,9.65560513,194.45,194.39,8.98560513]
[1761799228587,0.67,194.45,194.4,8.98560513]
[1761799228788,0.67,194.44,194.39,8.98560513]
[1761799229650,0.67,194.44,194.32,0.51461506]
[1761799229863,8.98560513,194.42,194.35,8.98560513]
[1761799230056,0.67,194.44,194.35,8.98560513]
[1761799230258,0.67,194.44,194.37,20.592]
[1761799230493,8.98560513,194.42,194.33,21.10658858]
[1761799230785,0.67,194.44,194.36,8.98560513]
[1761799230992,50.0,194.55,194.43,8.98560513]
[1761799231167,8.98560513,194.49,194.43,8.98560513]
[1761799231375,50.0,194.56,194.38,20.592]
[1761799231376,8.98560513,194.45,194.38,20.592]
[1761799231563,0.67,194.48,194.38,20.592]
[1761799231564,0.67,194.48,194.42,8.98560513]
[1761799231887,8.98560513,194.45,194.38,20.592]
[1761799232093,0.67,194.48,194.33,0.36]
[1761799232094,8.98560513,194.41,194.33,20.592]
[1761799232262,8.98560513,194.37,194.29,5.14683132]
[1761799232462,8.98560513,194.33,194.21,5.14906544]
[1761799232700,8.98560513,194.31,194.2,0.87493305]
[1761799232866,8.98560513,194.32,194.2,6.02423898]
[1761799233195,8.98560513,194.3,194.22,20.592]
[1761799233490,0.67,194.31,194.25,8.98560513]
[1761799233697,0.67,194.31,194.27,8.98560513]
[1761799233995,8.98560513,194.34,194.29,8.98560513]
[1761799234164,0.67,194.35,194.24,9.78882769]
[1761799234371,0.67,194.35,194.27,20.592]
[1761799234694,50.0,194.43,194.33,8.98560513]
[1761799234695,9.65560513,194.39,194.33,8.98560513]
[1761799234892,0.67,194.42,194.31,8.98560513]
[1761799235060,0.67,194.42,194.27,20.592]
[1761799235264,4.38231286,194.42,194.31,8.98560513]
[1761799235670,50.67,194.41,194.23,20.592]
[1761799235870,50.67,194.41,194.29,8.98560513]
[1761799236166,50.67,194.4,194.23,5.14853524]
[1761799236504,8.98560513,194.33,194.27,8.98560513]
[1761799236803,8.98560513,194.36,194.3,8.98560513]
[1761799236962,8.98560513,194.36,194.26,5.14774014]
[1761799237165,0.67,194.35,194.3,8.98560513]
[1761799237375,9.65560513,194.35,194.27,20.592]
[1761799237576,9.65560513,194.35,194.28,8.98560513]
[1761799237577,8.98560513,194.34,194.28,8.98560513]
[1761799237804,8.98560513,194.34,194.25,20.592]
[1761799237805,0.67,194.33,194.27,8.98560513]
[1761799237967,0.67,194.33,194.28,8.98560513]
[1761799238169,8.98560513,194.31,194.19,9.78882769]
[1761799238404,8.98560513,194.29,194.23,8.98560513]
[1761799238595,0.67,194.33,194.24,8.98560513]
[1761799238770,8.98560513,194.28,194.16,0.51503914]
[1761799239170,8.98560513,194.22,194.11,18.03101333]
[1761799239366,8.98560513,194.22,194.16,8.98560513]
[1761799239583,8.98560513,194.17,194.1,8.98560513]
[1761799239797,8.98560513,194.16,194.1,8.98560513]
[1761799240006,8.98560513,194.16,194.07,20.592]
[1761799240007,8.98560513,194.17,194.07,38.62672973]
[1761799240176,8.98560513,194.18,194.12,8.98560513]
[1761799240373,0.67,194.19,194.08,0.51525144]
[1761799240571,0.67,194.19,194.06,0.2]
[1761799240572,8.98560513,194.18,194.06,0.2]
[1761799240776,8.98560513,194.16,194.1,8.98560513]
[1761799240982,8.98560513,194.17,194.08,5.15250499]
[1761799241193,0.67,194.18,194.12,8.98560513]
[1761799241194,9.65560513,194.18,194.12,8.98560513]
[1761799241407,7.81399667,194.15,194.06,5.35281488]
[1761799241620,7.81399667,194.15,194.09,7.81399667]
[1761799241833,8.48399667,194.14,194.08,7.81399667]
[1761799242046,7.81399667,194.1,194.06,0.2]
[1761799242340,0.67,194.13,194.06,8.01399667]
[1761799242535,7.81399667,194.12,194.06,8.01399667]
[1761799242834,7.81399667,194.1,194.06,0.2]
[1761799243003,0.67,194.11,194.06,0.2]
[1761799243004,7.81399667,194.07,194.06,0.2]
[1761799243203,9.93098926,194.15,194.06,0.2]
[1761799243204,7.81399667,194.09,194.06,0.2]
[1761799243512,1.99999999,194.22,194.06,0.2]
[1761799243513,0.67,194.14,194.06,5.35302577]
[1761799243715,7.81399667,194.12,194.06,0.2]
[1761799244018,0.67,194.11,194.06,0.2]
[1761799244227,0.67,194.11,194.06,8.01399667]
[1761799244417,0.67,194.15,194.08,7.81399667]
[1761799244616,7.81399667,194.14,194.07,7.81399667]
[1761799244828,0.67,194.15,194.07,7.81399667]
[1761799245033,0.67,194.14,194.06,0.2]
[1761799245232,0.67,194.14,194.09,7.81399667]
[1761799245603,0.67,194.14,194.1,7.81399667]
[1761799246230,0.67,194.14,194.11,7.81399667]
[1761799246439,0.67,194.14,194.09,7.81399667]
[1761799246638,0.67,194.14,194.08,7.81399667]
[1761799247443,0.67,194.14,194.1,7.81399667]
[1761799247647,0.67,194.18,194.12,7.81399667]
[1761799248146,7.81399667,194.15,194.09,7.81399667]
[1761799248539,0.67,194.15,194.1,7.81399667]
[1761799248743,0.67,194.15,194.11,7.81399667]
[1761799249045,0.67,194.15,194.1,7.81399667]
[1761799249248,7.81399667,194.14,194.08,7.81399667]
[1761799249439,7.81399667,194.12,194.06,0.2]
[1761799249640,8.48399667,194.12,194.06,8.01399667]
[1761799249955,7.81399667,194.09,194.06,0.2]
[1761799250456,0.67,194.12,194.06,0.2]
[1761799250652,7.81399667,194.15,194.09,7.81399667]
[1761799250946,7.81399667,194.17,194.1,7.81399667]
[1761799251327,0.67,194.16,194.1,7.81399667]
[1761799251523,0.67,194.16,194.11,7.81399667]
[1761799251836,7.81399667,194.19,194.12,7.81399667]
[1761799252061,0.67,194.2,194.11,7.81399667]
[1761799252242,7.81399667,194.16,194.1,7.81399667]
[1761799252547,7.81399667,194.16,194.07,20.592]
[1761799252850,9.78882769,194.24,194.07,20.592]
[1761799252851,7.81399667,194.14,194.07,7.81399667]
[1761799253050,0.68,194.15,194.07,7.81399667]
[1761799253254,0.68,194.15,194.11,7.81399667]
[1761799253437,0.68,194.19,194.14,5.10244241]
[1761799253752,0.68,194.26,194.17,5.10244241]
[1761799253963,5.14747517,194.27,194.14,5.10244241]
[1761799253964,5.10244241,194.2,194.14,5.10244241]
[1761799254341,5.78244241,194.2,194.09,20.592]
[1761799254642,50.0,194.25,194.09,20.592]
[1761799254959,5.10244241,194.28,194.22,5.10244241]
[1761799255257,0.68,194.26,194.17,5.15012617]
[1761799255465,0.68,194.26,194.17,0.51501261]
[1761799255852,0.68,194.29,194.23,5.10244241]
[1761799256049,0.68,194.29,194.24,5.10244241]
[1761799256252,5.78244241,194.29,194.23,5.10244241]
[1761799256856,5.78244241,194.29,194.24,5.10244241]
[1761799256857,0.68,194.29,194.24,5.10244241]
[1761799257053,0.68,194.34,194.27,5.10244241]
[1761799257243,0.68,194.34,194.28,5.10244241]
[1761799257448,0.68,194.34,194.23,0.51485352]
[1761799257764,5.10244241,194.32,194.25,5.10244241]
[1761799257969,5.10244241,194.29,194.22,20.592]
[1761799258171,5.10244241,194.3,194.23,5.10244241]
[1761799258343,5.78244241,194.3,194.23,5.10244241]
[1761799258542,5.78244241,194.3,194.24,5.10244241]
[1761799258753,5.10244241,194.28,194.21,20.592]
[1761799258951,5.10244241,194.28,194.21,25.69444241]
[1761799259141,5.14642012,194.31,194.21,25.69444241]
[1761799259340,0.68,194.35,194.28,5.10244241]